[Event "Gibraltar Masters 18th"]
[Site "Gibraltar"]
[Date "2020.01.27"]
[Round "7.34"]
[White "Javakhishvili, Lela"]
[Black "Tregubov, Pavel V"]
[Result "1/2-1/2"]
[ECO "E11"]
[WhiteElo "2463"]
[BlackElo "2588"]
[PlyCount "65"]
[EventDate "2020.01.21"]
[EventType "swiss"]
[EventRounds "10"]
[EventCountry "GGB"]
[SourceTitle "BritBase"]
[Source "John Saunders"]
[SourceDate "2021.06.05"]
[SourceVersion "1"]
[SourceVersionDate "2021.06.05"]
[SourceQuality "1"]
[TimeControl "40/100:0"]
[WhiteClock "0:19:21"]
[BlackClock "0:09:10"]

1. d4 {[%emt 0:00:00]} Nf6 {[%emt 0:00:00]} 2. c4 {[%emt 0:00:00]} e6 {[%emt 0:
00:00]} 3. Nf3 {[%emt 0:00:00]} Bb4+ {[%emt 0:00:00]} 4. Bd2 {[%emt 0:00:00]}
Qe7 {[%emt 0:00:00]} 5. g3 {[%emt 0:00:00]} Bxd2+ {[%emt 0:00:00]} 6. Qxd2 {
[%emt 0:00:00]} Nc6 {[%emt 0:00:00]} 7. Bg2 {[%emt 0:00:00]} Ne4 {[%emt 0:00:
00]} 8. Qc2 {[%emt 0:00:00]} Qb4+ {[%emt 0:00:00]} 9. Kf1 {[%emt 0:00:00]} d5 {
[%emt 0:00:00]} 10. e3 {[%emt 0:00:00]} dxc4 {[%emt 0:00:00]} 11. Nbd2 {
[%emt 0:00:00]} Nxd2+ {[%emt 0:00:00]} 12. Nxd2 {[%emt 0:00:00]} Na5 {[%emt 0:
00:00]} 13. Bf3 {[%emt 0:00:00]} e5 {[%emt 0:00:00]} 14. Kg2 {[%emt 0:00:00]}
exd4 {[%emt 0:00:00]} 15. exd4 {[%emt 0:00:00]} O-O {[%emt 0:00:00]} 16. Rhe1 {
[%emt 0:00:00]} Rb8 {[%emt 0:00:00]} 17. a3 {[%emt 0:00:00]} Qd6 {[%emt 0:00:
00]} 18. Nxc4 {[%emt 0:00:00]} Nxc4 {[%emt 0:00:00]} 19. Qxc4 {[%emt 0:00:00]}
Bd7 {[%emt 0:00:00]} 20. Rac1 {[%emt 0:00:00]} Rfc8 {[%emt 0:00:00]} 21. Qc5 {
[%emt 0:00:00]} Qxc5 {[%emt 0:00:00]} 22. Rxc5 {[%emt 0:00:00]} c6 {[%emt 0:00:
00]} 23. d5 {[%emt 0:00:00]} Kf8 {[%emt 0:00:00]} 24. dxc6 {[%emt 0:00:00]}
Bxc6 {[%emt 0:00:00]} 25. Rec1 {[%emt 0:00:00]} Bxf3+ {[%emt 0:00:00]} 26. Kxf3
{[%emt 0:00:00]} Rxc5 {[%emt 0:00:00]} 27. Rxc5 {[%emt 0:00:00]} Rd8 {[%emt 0:
00:00]} 28. Ke3 {[%emt 0:00:00]} Ke7 {[%emt 0:00:00]} 29. h4 {[%emt 0:00:00]}
Kd6 {[%emt 0:00:00]} 30. Kd4 {[%emt 0:00:00]} Ke6+ {[%emt 0:00:00]} 31. Ke3 {
[%emt 0:00:00]} Kd6 {[%emt 0:00:00]} 32. Kd4 {[%emt 0:00:00]} Ke6+ {[%emt 0:00:
00]} 33. Ke3 {[%emt 0:00:00]} 1/2-1/2

[Event "Gibraltar Masters 18th"]
[Site "Gibraltar"]
[Date "2020.01.27"]
[Round "7.35"]
[White "Peralta, Fernando"]
[Black "Womacka, Mathias"]
[Result "1-0"]
[ECO "E11"]
[WhiteElo "2574"]
[BlackElo "2439"]
[PlyCount "93"]
[EventDate "2020.01.21"]
[EventType "swiss"]
[EventRounds "10"]
[EventCountry "GGB"]
[SourceTitle "BritBase"]
[Source "John Saunders"]
[SourceDate "2021.06.05"]
[SourceVersion "1"]
[SourceVersionDate "2021.06.05"]
[SourceQuality "1"]
[TimeControl "40/100:0"]
[WhiteClock "0:34:00"]
[BlackClock "0:44:41"]

1. d4 {[%emt 0:00:00]} Nf6 {[%emt 0:00:00]} 2. c4 {[%emt 0:00:00]} e6 {[%emt 0:
00:00]} 3. Nf3 {[%emt 0:00:00]} Bb4+ {[%emt 0:00:00]} 4. Nbd2 {[%emt 0:00:00]}
O-O {[%emt 0:00:00]} 5. a3 {[%emt 0:00:00]} Be7 {[%emt 0:00:00]} 6. e4 {
[%emt 0:00:00]} d5 {[%emt 0:00:00]} 7. e5 {[%emt 0:00:00]} Nfd7 {[%emt 0:00:00]
} 8. Bd3 {[%emt 0:00:00]} c5 {[%emt 0:00:00]} 9. h4 {[%emt 0:00:00]} g6 {
[%emt 0:00:00]} 10. O-O {[%emt 0:00:00]} Nc6 {[%emt 0:00:00]} 11. Re1 {[%emt 0:
00:00]} cxd4 {[%emt 0:00:00]} 12. Nf1 {[%emt 0:00:00]} dxc4 {[%emt 0:00:00]}
13. Bxc4 {[%emt 0:00:00]} Qc7 {[%emt 0:00:00]} 14. Bf4 {[%emt 0:00:00]} Ncxe5 {
[%emt 0:00:00]} 15. Bxe5 {[%emt 0:00:00]} Qxc4 {[%emt 0:00:00]} 16. Bxd4 {
[%emt 0:00:00]} Nb6 {[%emt 0:00:00]} 17. Ne3 {[%emt 0:00:00]} Qa4 {[%emt 0:00:
00]} 18. Nd5 {[%emt 0:00:00]} exd5 {[%emt 0:00:00]} 19. Qxa4 {[%emt 0:00:00]}
Nxa4 {[%emt 0:00:00]} 20. Rxe7 {[%emt 0:00:00]} Nb6 {[%emt 0:00:00]} 21. b3 {
[%emt 0:00:00]} Nd7 {[%emt 0:00:00]} 22. Rc1 {[%emt 0:00:00]} Nb8 {[%emt 0:00:
00]} 23. Ne5 {[%emt 0:00:00]} Nc6 {[%emt 0:00:00]} 24. Nxc6 {[%emt 0:00:00]}
bxc6 {[%emt 0:00:00]} 25. Bxa7 {[%emt 0:00:00]} d4 {[%emt 0:00:00]} 26. Rd1 {
[%emt 0:00:00]} Be6 {[%emt 0:00:00]} 27. b4 {[%emt 0:00:00]} Rfd8 {[%emt 0:00:
00]} 28. Rxd4 {[%emt 0:00:00]} Rxd4 {[%emt 0:00:00]} 29. Bxd4 {[%emt 0:00:00]}
Kf8 {[%emt 0:00:00]} 30. Rc7 {[%emt 0:00:00]} Rxa3 {[%emt 0:00:00]} 31. b5 {
[%emt 0:00:00]} Rb3 {[%emt 0:00:00]} 32. b6 {[%emt 0:00:00]} Ke8 {[%emt 0:00:
00]} 33. Bc5 {[%emt 0:00:00]} Rb5 {[%emt 0:00:00]} 34. Rxc6 {[%emt 0:00:00]} h5
{[%emt 0:00:00]} 35. Rc7 {[%emt 0:00:00]} Bd5 {[%emt 0:00:00]} 36. Kh2 {
[%emt 0:00:00]} f6 {[%emt 0:00:00]} 37. f3 {[%emt 0:00:37]} g5 {[%emt 0:00:00]}
38. Bd4 {[%emt 0:00:17]} Rb4 {[%emt 0:00:10]} 39. Bxf6 {[%emt 0:00:08]} Rxh4+ {
[%emt 0:00:21]} 40. Kg3 {[%emt 0:00:05]} Rb4 {[%emt 0:00:00]} 41. Re7+ {
[%emt 0:00:00]} Kf8 {[%emt 0:00:00]} 42. Re5 {[%emt 0:00:00]} Kf7 {[%emt 0:00:
00]} 43. Be7 {[%emt 0:00:00]} h4+ {[%emt 0:00:00]} 44. Kh2 {[%emt 0:00:00]}
Rxb6 {[%emt 0:00:00]} 45. Rxd5 {[%emt 0:00:00]} Kxe7 {[%emt 0:00:00]} 46. Rxg5
{[%emt 0:00:00]} Rb4 {[%emt 0:00:00]} 47. Kh3 {[%emt 0:00:00]} 1-0

[Event "Gibraltar Masters 18th"]
[Site "Gibraltar"]
[Date "2020.01.27"]
[Round "7.36"]
[White "Horvath, Dominik"]
[Black "Ramirez, Alejandro"]
[Result "0-1"]
[ECO "E01"]
[WhiteElo "2449"]
[BlackElo "2574"]
[PlyCount "64"]
[EventDate "2020.01.21"]
[EventType "swiss"]
[EventRounds "10"]
[EventCountry "GGB"]
[SourceTitle "BritBase"]
[Source "John Saunders"]
[SourceDate "2021.06.05"]
[SourceVersion "1"]
[SourceVersionDate "2021.06.05"]
[SourceQuality "1"]
[TimeControl "40/100:0"]
[WhiteClock "0:13:09"]
[BlackClock "0:07:28"]

1. Nf3 {[%emt 0:00:00]} d5 {[%emt 0:00:00]} 2. d4 {[%emt 0:00:00]} Nf6 {
[%emt 0:00:00]} 3. c4 {[%emt 0:00:00]} e6 {[%emt 0:00:00]} 4. g3 {[%emt 0:00:
00]} Bb4+ {[%emt 0:00:00]} 5. Nbd2 {[%emt 0:00:00]} dxc4 {[%emt 0:00:00]} 6. a3
{[%emt 0:00:00]} Bxd2+ {[%emt 0:00:00]} 7. Bxd2 {[%emt 0:00:00]} O-O {[%emt 0:
00:00]} 8. Bg2 {[%emt 0:00:00]} Nc6 {[%emt 0:00:00]} 9. e3 {[%emt 0:00:00]} Rb8
{[%emt 0:00:00]} 10. Rc1 {[%emt 0:00:00]} b5 {[%emt 0:00:00]} 11. b3 {[%emt 0:
00:00]} Qd6 {[%emt 0:00:00]} 12. bxc4 {[%emt 0:00:00]} bxc4 {[%emt 0:00:00]}
13. Rxc4 {[%emt 0:00:00]} Ba6 {[%emt 0:00:00]} 14. Rc5 {[%emt 0:00:00]} Ne4 {
[%emt 0:00:00]} 15. Rc2 {[%emt 0:00:00]} Rb6 {[%emt 0:00:00]} 16. Bc1 {[%emt 0:
00:00]} Rd8 {[%emt 0:00:00]} 17. Nd2 {[%emt 0:00:00]} Nxd2 {[%emt 0:00:00]} 18.
Qxd2 {[%emt 0:00:00]} e5 {[%emt 0:00:00]} 19. d5 {[%emt 0:00:00]} Ne7 {[%emt 0:
00:00]} 20. e4 {[%emt 0:00:00]} c6 {[%emt 0:00:00]} 21. f4 {[%emt 0:00:00]}
cxd5 {[%emt 0:00:00]} 22. exd5 {[%emt 0:00:00]} exf4 {[%emt 0:00:00]} 23. Qxf4
{[%emt 0:00:00]} Qd7 {[%emt 0:00:00]} 24. Rc5 {[%emt 0:00:00]} Re6+ {[%emt 0:
00:00]} 25. Be3 {[%emt 0:00:00]} Nf5 {[%emt 0:00:00]} 26. Bh3 {[%emt 0:00:00]}
Nxe3 {[%emt 0:00:00]} 27. Bxe6 {[%emt 0:00:00]} Ng2+ {[%emt 0:00:00]} 28. Kd2 {
[%emt 0:00:00]} Qxe6 {[%emt 0:00:00]} 29. Qf3 {[%emt 0:00:00]} Qb6 {[%emt 0:00:
00]} 30. Rhc1 {[%emt 0:00:54]} Qb2+ {[%emt 0:00:00]} 31. R1c2 {[%emt 0:00:00]}
Qd4+ {[%emt 0:00:00]} 32. Kc1 {[%emt 0:00:00]} Qa1+ {[%emt 0:00:00]} 0-1

[Event "Gibraltar Masters 18th"]
[Site "Gibraltar"]
[Date "2020.01.27"]
[Round "7.37"]
[White "Li, Di"]
[Black "Kulkarni, Bhakti"]
[Result "1-0"]
[ECO "E06"]
[WhiteElo "2562"]
[BlackElo "2404"]
[PlyCount "51"]
[EventDate "2020.01.21"]
[EventType "swiss"]
[EventRounds "10"]
[EventCountry "GGB"]
[SourceTitle "BritBase"]
[Source "John Saunders"]
[SourceDate "2021.06.05"]
[SourceVersion "1"]
[SourceVersionDate "2021.06.05"]
[SourceQuality "1"]
[TimeControl "40/100:0"]
[WhiteClock "1:10:27"]
[BlackClock "0:21:37"]

1. d4 {[%emt 0:00:00]} d5 {[%emt 0:00:00]} 2. c4 {[%emt 0:00:00]} e6 {[%emt 0:
00:00]} 3. Nf3 {[%emt 0:00:00]} Nf6 {[%emt 0:00:00]} 4. Nc3 {[%emt 0:00:00]}
Be7 {[%emt 0:00:00]} 5. g3 {[%emt 0:00:00]} O-O {[%emt 0:00:00]} 6. Bg2 {
[%emt 0:00:00]} c6 {[%emt 0:00:00]} 7. O-O {[%emt 0:00:00]} b6 {[%emt 0:00:00]}
8. Nd2 {[%emt 0:00:00]} b5 {[%emt 0:00:00]} 9. cxb5 {[%emt 0:00:00]} cxb5 {
[%emt 0:00:00]} 10. Nxb5 {[%emt 0:00:00]} Qb6 {[%emt 0:00:00]} 11. Nc3 {
[%emt 0:00:00]} Qxd4 {[%emt 0:00:00]} 12. e4 {[%emt 0:00:00]} Ba6 {[%emt 0:00:
00]} 13. Nb3 {[%emt 0:00:00]} Qb4 {[%emt 0:00:00]} 14. exd5 {[%emt 0:00:00]}
exd5 {[%emt 0:00:00]} 15. Bd2 {[%emt 0:00:00]} Qd6 {[%emt 0:00:00]} 16. Bf4 {
[%emt 0:00:00]} Qb6 {[%emt 0:00:00]} 17. Be3 {[%emt 0:00:00]} Qd8 {[%emt 0:00:
00]} 18. Nxd5 {[%emt 0:00:00]} Nxd5 {[%emt 0:00:00]} 19. Qxd5 {[%emt 0:00:00]}
Bxf1 {[%emt 0:00:00]} 20. Qxd8 {[%emt 0:00:00]} Rxd8 {[%emt 0:00:00]} 21. Kxf1
{[%emt 0:00:00]} Nd7 {[%emt 0:00:00]} 22. Bxa8 {[%emt 0:00:00]} Rxa8 {[%emt 0:
00:00]} 23. Rc1 {[%emt 0:00:00]} Nb6 {[%emt 0:00:00]} 24. Bd4 {[%emt 0:00:00]}
f6 {[%emt 0:00:00]} 25. Rc7 {[%emt 0:00:00]} Kf8 {[%emt 0:00:00]} 26. Na5 {
[%emt 0:00:00]} 1-0

[Event "Gibraltar Masters 18th"]
[Site "Gibraltar"]
[Date "2020.01.27"]
[Round "7.38"]
[White "Atalik, Ekaterina"]
[Black "Lalith, Babu M R"]
[Result "0-1"]
[ECO "A57"]
[WhiteElo "2450"]
[BlackElo "2558"]
[PlyCount "60"]
[EventDate "2020.01.21"]
[EventType "swiss"]
[EventRounds "10"]
[EventCountry "GGB"]
[SourceTitle "BritBase"]
[Source "John Saunders"]
[SourceDate "2021.06.05"]
[SourceVersion "1"]
[SourceVersionDate "2021.06.05"]
[SourceQuality "1"]
[TimeControl "40/100:0"]
[WhiteClock "0:02:07"]
[BlackClock "0:40:49"]

1. d4 {[%emt 0:00:00]} Nf6 {[%emt 0:00:00]} 2. Nf3 {[%emt 0:00:00]} c5 {
[%emt 0:00:00]} 3. d5 {[%emt 0:00:00]} g6 {[%emt 0:00:00]} 4. c4 {[%emt 0:00:
00]} b5 {[%emt 0:00:00]} 5. Qc2 {[%emt 0:00:00]} bxc4 {[%emt 0:00:00]} 6. e4 {
[%emt 0:00:00]} Bg7 {[%emt 0:00:00]} 7. Bxc4 {[%emt 0:00:00]} d6 {[%emt 0:00:
00]} 8. O-O {[%emt 0:00:00]} O-O {[%emt 0:00:00]} 9. Nc3 {[%emt 0:00:00]} Nbd7
{[%emt 0:00:00]} 10. Re1 {[%emt 0:00:00]} a5 {[%emt 0:00:00]} 11. Bg5 {[%emt 0:
00:00]} h6 {[%emt 0:00:00]} 12. Bd2 {[%emt 0:00:00]} Nb6 {[%emt 0:00:00]} 13.
Bb5 {[%emt 0:00:00]} Bg4 {[%emt 0:00:00]} 14. Bc6 {[%emt 0:00:00]} Rb8 {
[%emt 0:00:00]} 15. e5 {[%emt 0:00:00]} Nh7 {[%emt 0:00:00]} 16. Ne4 {[%emt 0:
00:00]} Bxf3 {[%emt 0:00:00]} 17. gxf3 {[%emt 0:00:00]} Bxe5 {[%emt 0:00:00]}
18. Bxh6 {[%emt 0:00:00]} Qc8 {[%emt 0:00:00]} 19. Ng3 {[%emt 0:00:00]} Qh3 {
[%emt 0:00:00]} 20. Be3 {[%emt 0:00:00]} Qh4 {[%emt 0:00:00]} 21. f4 {[%emt 0:
00:00]} Bxf4 {[%emt 0:00:00]} 22. Bxf4 {[%emt 0:00:00]} Qxf4 {[%emt 0:00:00]}
23. Rxe7 {[%emt 0:00:00]} Ng5 {[%emt 0:00:00]} 24. Rae1 {[%emt 0:00:00]} Nf3+ {
[%emt 0:00:00]} 25. Kg2 {[%emt 0:00:00]} Nc8 {[%emt 0:00:00]} 26. R1e4 {
[%emt 0:00:00]} Nxe7 {[%emt 0:00:00]} 27. Qc3 {[%emt 0:00:00]} Nh4+ {[%emt 0:
00:00]} 28. Kh3 {[%emt 0:00:00]} Qxf2 {[%emt 0:00:00]} 29. Rxh4 {[%emt 0:00:00]
} f6 {[%emt 0:00:00]} 30. Ne4 {[%emt 0:00:00]} Qf1+ {[%emt 0:00:00]} 0-1

[Event "Gibraltar Masters 18th"]
[Site "Gibraltar"]
[Date "2020.01.27"]
[Round "7.39"]
[White "Sardana, Rishi"]
[Black "Ali Marandi, Cemil Can"]
[Result "0-1"]
[ECO "C76"]
[WhiteElo "2437"]
[BlackElo "2546"]
[PlyCount "64"]
[EventDate "2020.01.21"]
[EventType "swiss"]
[EventRounds "10"]
[EventCountry "GGB"]
[SourceTitle "BritBase"]
[Source "John Saunders"]
[SourceDate "2021.06.05"]
[SourceVersion "1"]
[SourceVersionDate "2021.06.05"]
[SourceQuality "1"]
[TimeControl "40/100:0"]
[WhiteClock "0:00:40"]
[BlackClock "0:23:52"]

1. e4 {[%emt 0:00:00]} e5 {[%emt 0:00:00]} 2. Nf3 {[%emt 0:00:00]} Nc6 {
[%emt 0:00:00]} 3. Bb5 {[%emt 0:00:00]} a6 {[%emt 0:00:00]} 4. Ba4 {[%emt 0:00:
00]} g6 {[%emt 0:00:00]} 5. c3 {[%emt 0:00:00]} d6 {[%emt 0:00:00]} 6. d4 {
[%emt 0:00:00]} Bd7 {[%emt 0:00:00]} 7. O-O {[%emt 0:00:00]} Bg7 {[%emt 0:00:
00]} 8. dxe5 {[%emt 0:00:00]} dxe5 {[%emt 0:00:00]} 9. Be3 {[%emt 0:00:00]} Nf6
{[%emt 0:00:00]} 10. Nbd2 {[%emt 0:00:00]} O-O {[%emt 0:00:00]} 11. h3 {
[%emt 0:00:00]} Nh5 {[%emt 0:00:00]} 12. Bc2 {[%emt 0:00:00]} Qe7 {[%emt 0:00:
00]} 13. b4 {[%emt 0:00:00]} Rfd8 {[%emt 0:00:00]} 14. Re1 {[%emt 0:00:00]} Nf4
{[%emt 0:00:00]} 15. Qb1 {[%emt 0:00:00]} Qf6 {[%emt 0:00:00]} 16. Bb3 {
[%emt 0:00:00]} g5 {[%emt 0:00:00]} 17. Nh2 {[%emt 0:00:00]} h5 {[%emt 0:00:00]
} 18. Ndf1 {[%emt 0:00:00]} g4 {[%emt 0:00:00]} 19. hxg4 {[%emt 0:00:00]} hxg4
{[%emt 0:00:00]} 20. Bd1 {[%emt 0:00:00]} Qh4 {[%emt 0:00:00]} 21. g3 {[%emt 0:
00:00]} Nh3+ {[%emt 0:00:00]} 22. Kg2 {[%emt 0:00:00]} Qh5 {[%emt 0:00:00]} 23.
f3 {[%emt 0:00:00]} gxf3+ {[%emt 0:00:00]} 24. Nxf3 {[%emt 0:00:00]} Ne7 {
[%emt 0:00:00]} 25. N1h2 {[%emt 0:00:00]} Ng6 {[%emt 0:00:00]} 26. Ng5 {
[%emt 0:00:00]} Qh8 {[%emt 0:00:00]} 27. Ng4 {[%emt 0:00:00]} Nhf4+ {[%emt 0:
00:00]} 28. gxf4 {[%emt 0:00:00]} Bxg4 {[%emt 0:00:00]} 29. Bxg4 {[%emt 0:00:
00]} Qh4 {[%emt 0:00:00]} 30. Be6 {[%emt 0:00:00]} fxe6 {[%emt 0:00:00]} 31.
Qb3 {[%emt 0:00:27]} Qg4+ {[%emt 0:00:00]} 32. Kf1 {[%emt 0:00:33]} Nxf4 {
[%emt 0:00:00]} 0-1

[Event "Gibraltar Masters 18th"]
[Site "Gibraltar"]
[Date "2020.01.27"]
[Round "7.40"]
[White "Kaidanov, Gregory"]
[Black "Astaneh Lopez, Alex"]
[Result "1/2-1/2"]
[ECO "A05"]
[WhiteElo "2546"]
[BlackElo "2432"]
[PlyCount "102"]
[EventDate "2020.01.21"]
[EventType "swiss"]
[EventRounds "10"]
[EventCountry "GGB"]
[SourceTitle "BritBase"]
[Source "John Saunders"]
[SourceDate "2021.06.05"]
[SourceVersion "1"]
[SourceVersionDate "2021.06.05"]
[SourceQuality "1"]
[TimeControl "40/100:0"]
[WhiteClock "0:36:39"]
[BlackClock "0:47:55"]

1. Nf3 {[%emt 0:00:00]} Nf6 {[%emt 0:00:00]} 2. g3 {[%emt 0:00:00]} b5 {
[%emt 0:00:00]} 3. Bg2 {[%emt 0:00:00]} Bb7 {[%emt 0:00:00]} 4. O-O {[%emt 0:
00:00]} e6 {[%emt 0:00:00]} 5. d3 {[%emt 0:00:00]} d5 {[%emt 0:00:00]} 6. Nbd2
{[%emt 0:00:00]} Be7 {[%emt 0:00:00]} 7. e4 {[%emt 0:00:00]} c5 {[%emt 0:00:00]
} 8. a4 {[%emt 0:00:00]} a6 {[%emt 0:00:00]} 9. exd5 {[%emt 0:00:00]} Nxd5 {
[%emt 0:00:00]} 10. Ne5 {[%emt 0:00:00]} Qc7 {[%emt 0:00:00]} 11. Re1 {[%emt 0:
00:00]} O-O {[%emt 0:00:00]} 12. axb5 {[%emt 0:00:00]} axb5 {[%emt 0:00:00]}
13. Rxa8 {[%emt 0:00:00]} Bxa8 {[%emt 0:00:00]} 14. c4 {[%emt 0:00:00]} bxc4 {
[%emt 0:00:00]} 15. dxc4 {[%emt 0:00:00]} Nb6 {[%emt 0:00:00]} 16. Bxa8 {
[%emt 0:00:00]} Nxa8 {[%emt 0:00:00]} 17. Qa4 {[%emt 0:00:00]} Nb6 {[%emt 0:00:
00]} 18. Qb5 {[%emt 0:00:00]} Nc8 {[%emt 0:00:00]} 19. Nb3 {[%emt 0:00:00]} Na7
{[%emt 0:00:00]} 20. Qa5 {[%emt 0:00:00]} Qxa5 {[%emt 0:00:00]} 21. Nxa5 {
[%emt 0:00:00]} Rc8 {[%emt 0:00:00]} 22. Be3 {[%emt 0:00:00]} Nac6 {[%emt 0:00:
00]} 23. Naxc6 {[%emt 0:00:00]} Nxc6 {[%emt 0:00:00]} 24. Nxc6 {[%emt 0:00:00]}
Rxc6 {[%emt 0:00:00]} 25. Ra1 {[%emt 0:00:00]} f5 {[%emt 0:00:00]} 26. Ra5 {
[%emt 0:00:00]} Kf7 {[%emt 0:00:00]} 27. Ra7 {[%emt 0:00:00]} Ke8 {[%emt 0:00:
00]} 28. h4 {[%emt 0:00:00]} h6 {[%emt 0:00:00]} 29. h5 {[%emt 0:00:00]} Rc8 {
[%emt 0:00:00]} 30. Rb7 {[%emt 0:00:00]} Ra8 {[%emt 0:00:00]} 31. Kg2 {[%emt 0:
00:00]} Ra4 {[%emt 0:00:00]} 32. b3 {[%emt 0:00:00]} Ra2 {[%emt 0:00:00]} 33.
Rb5 {[%emt 0:00:00]} Rb2 {[%emt 0:00:00]} 34. Bxc5 {[%emt 0:00:00]} Bxc5 {
[%emt 0:00:00]} 35. Rxc5 {[%emt 0:00:00]} Rxb3 {[%emt 0:00:00]} 36. Rc7 {
[%emt 0:00:00]} Kf8 {[%emt 0:00:00]} 37. c5 {[%emt 0:00:00]} e5 {[%emt 0:00:00]
} 38. Rd7 {[%emt 0:00:00]} Rc3 {[%emt 0:00:00]} 39. Rd5 {[%emt 0:00:00]} f4 {
[%emt 0:00:00]} 40. Rxe5 {[%emt 0:00:00]} fxg3 {[%emt 0:00:00]} 41. fxg3 {
[%emt 0:00:37]} Kf7 {[%emt 0:00:00]} 42. g4 {[%emt 0:00:00]} Kf6 {[%emt 0:00:
00]} 43. Rf5+ {[%emt 0:00:00]} Ke6 {[%emt 0:00:00]} 44. Kf2 {[%emt 0:00:00]}
Rc4 {[%emt 0:00:00]} 45. Kf3 {[%emt 0:00:00]} Rc3+ {[%emt 0:00:00]} 46. Kf2 {
[%emt 0:00:00]} Rc4 {[%emt 0:00:00]} 47. Kf3 {[%emt 0:00:00]} Rc3+ {[%emt 0:00:
00]} 48. Ke2 {[%emt 0:00:00]} Rc4 {[%emt 0:00:00]} 49. Kf3 {[%emt 0:00:00]}
Rc3+ {[%emt 0:00:00]} 50. Kf2 {[%emt 0:00:00]} Rc4 {[%emt 0:00:00]} 51. Kf3 {
[%emt 0:00:00]} Rc3+ {[%emt 0:00:00]} 1/2-1/2

[Event "Gibraltar Masters 18th"]
[Site "Gibraltar"]
[Date "2020.01.27"]
[Round "7.41"]
[White "Rakotomaharo, Fy Antenaina"]
[Black "Baron, Tal"]
[Result "1/2-1/2"]
[ECO "E52"]
[WhiteElo "2433"]
[BlackElo "2529"]
[PlyCount "135"]
[EventDate "2020.01.21"]
[EventType "swiss"]
[EventRounds "10"]
[EventCountry "GGB"]
[SourceTitle "BritBase"]
[Source "John Saunders"]
[SourceDate "2021.06.05"]
[SourceVersion "1"]
[SourceVersionDate "2021.06.05"]
[SourceQuality "1"]
[TimeControl "40/100:0"]
[WhiteClock "0:03:47"]
[BlackClock "0:09:17"]

1. d4 {[%emt 0:00:00]} Nf6 {[%emt 0:00:00]} 2. c4 {[%emt 0:00:00]} e6 {[%emt 0:
00:00]} 3. Nc3 {[%emt 0:00:00]} Bb4 {[%emt 0:00:00]} 4. e3 {[%emt 0:00:00]} O-O
{[%emt 0:00:00]} 5. Bd2 {[%emt 0:00:00]} b6 {[%emt 0:00:00]} 6. Bd3 {[%emt 0:
00:00]} Bb7 {[%emt 0:00:00]} 7. Nf3 {[%emt 0:00:00]} d5 {[%emt 0:00:00]} 8.
cxd5 {[%emt 0:00:00]} exd5 {[%emt 0:00:00]} 9. Rc1 {[%emt 0:00:00]} a6 {
[%emt 0:00:00]} 10. O-O {[%emt 0:00:00]} Nbd7 {[%emt 0:00:00]} 11. Ne5 {
[%emt 0:00:00]} Bd6 {[%emt 0:00:00]} 12. f4 {[%emt 0:00:00]} Ne4 {[%emt 0:00:
00]} 13. Nxe4 {[%emt 0:00:00]} dxe4 {[%emt 0:00:00]} 14. Bc4 {[%emt 0:00:00]}
Qe7 {[%emt 0:00:00]} 15. Be1 {[%emt 0:00:00]} Rad8 {[%emt 0:00:00]} 16. Nxd7 {
[%emt 0:00:00]} Rxd7 {[%emt 0:00:00]} 17. Qg4 {[%emt 0:00:00]} Kh8 {[%emt 0:00:
00]} 18. f5 {[%emt 0:00:00]} f6 {[%emt 0:00:00]} 19. Bg3 {[%emt 0:00:00]} Bxg3
{[%emt 0:00:00]} 20. Qxg3 {[%emt 0:00:00]} Qd6 {[%emt 0:00:00]} 21. Be6 {
[%emt 0:00:00]} Qxg3 {[%emt 0:00:00]} 22. hxg3 {[%emt 0:00:00]} Re7 {[%emt 0:
00:00]} 23. d5 {[%emt 0:00:00]} g6 {[%emt 0:00:00]} 24. g4 {[%emt 0:00:00]} Rd8
{[%emt 0:00:00]} 25. Rfd1 {[%emt 0:00:00]} h5 {[%emt 0:00:00]} 26. fxg6 {
[%emt 0:00:00]} hxg4 {[%emt 0:00:00]} 27. Rd4 {[%emt 0:00:00]} Bc8 {[%emt 0:00:
00]} 28. Bxc8 {[%emt 0:00:00]} Rxc8 {[%emt 0:00:00]} 29. Rc6 {[%emt 0:00:00]}
Kg7 {[%emt 0:00:00]} 30. d6 {[%emt 0:00:00]} Rd7 {[%emt 0:00:00]} 31. Kf2 {
[%emt 0:00:00]} Kxg6 {[%emt 0:00:00]} 32. Rdc4 {[%emt 0:00:00]} b5 {[%emt 0:00:
00]} 33. Rc2 {[%emt 0:00:00]} Kg5 {[%emt 0:00:00]} 34. R2c5+ {[%emt 0:00:00]}
f5 {[%emt 0:00:00]} 35. Rxa6 {[%emt 0:00:00]} Kh4 {[%emt 0:00:00]} 36. Rxf5 {
[%emt 0:00:00]} g3+ {[%emt 0:00:00]} 37. Ke2 {[%emt 0:00:00]} cxd6 {[%emt 0:00:
00]} 38. Rf4+ {[%emt 0:00:00]} Kg5 {[%emt 0:00:00]} 39. Rxe4 {[%emt 0:00:00]}
Rc2+ {[%emt 0:00:00]} 40. Kf3 {[%emt 0:00:00]} Rxb2 {[%emt 0:00:00]} 41. Kxg3 {
[%emt 0:00:00]} Kf5 {[%emt 0:00:00]} 42. Rf4+ {[%emt 0:01:04]} Ke5 {[%emt 0:00:
00]} 43. Kf3 {[%emt 0:00:00]} Rb1 {[%emt 0:00:00]} 44. g4 {[%emt 0:00:00]} Rf1+
{[%emt 0:00:00]} 45. Kg3 {[%emt 0:00:00]} Rg1+ {[%emt 0:00:00]} 46. Kf2 {
[%emt 0:00:00]} Rb1 {[%emt 0:00:00]} 47. Ra8 {[%emt 0:00:00]} Rh7 {[%emt 0:00:
00]} 48. Rf5+ {[%emt 0:00:00]} Ke6 {[%emt 0:00:00]} 49. Kf3 {[%emt 0:00:00]}
Rg7 {[%emt 0:00:00]} 50. Re8+ {[%emt 0:00:00]} Kd7 {[%emt 0:00:00]} 51. Rb8 {
[%emt 0:00:00]} Kc6 {[%emt 0:00:00]} 52. Rc8+ {[%emt 0:00:00]} Kd7 {[%emt 0:00:
00]} 53. Rc2 {[%emt 0:00:00]} Rf1+ {[%emt 0:00:00]} 54. Ke2 {[%emt 0:00:00]}
Rg1 {[%emt 0:00:00]} 55. Rxb5 {[%emt 0:00:00]} R7xg4 {[%emt 0:00:00]} 56. Ra5 {
[%emt 0:00:00]} R4g2+ {[%emt 0:00:00]} 57. Kd3 {[%emt 0:00:00]} Rd1+ {[%emt 0:
00:00]} 58. Kc3 {[%emt 0:00:00]} Rg8 {[%emt 0:00:00]} 59. Ra7+ {[%emt 0:00:00]}
Ke6 {[%emt 0:00:00]} 60. Rd2 {[%emt 0:00:00]} Re1 {[%emt 0:00:00]} 61. Rd3 {
[%emt 0:00:00]} Rc8+ {[%emt 0:00:00]} 62. Kd2 {[%emt 0:00:00]} Rec1 {[%emt 0:
00:00]} 63. Rd4 {[%emt 0:00:00]} R1c2+ {[%emt 0:00:00]} 64. Kd1 {[%emt 0:00:00]
} Rh2 {[%emt 0:00:00]} 65. Ra6 {[%emt 0:00:00]} Rcc2 {[%emt 0:00:00]} 66.
Raxd6+ {[%emt 0:00:00]} Ke5 {[%emt 0:00:00]} 67. R6d5+ {[%emt 0:00:00]} Ke6 {
[%emt 0:00:00]} 68. Rd6+ {[%emt 0:00:00]} 1/2-1/2